[Event "Early-Titled-Tuesday-Blitz-March-19-2024"]
[Site "Chess.com"]
[Date "2024.03.19"]
[Round "7"]
[White "Orest_Vovk"]
[Black "Alexei_Gubajdullin"]
[Result "0-1"]
[WhiteElo "2525"]
[BlackElo "2655"]
[TimeControl "180+1"]
[EndTime "9:20:20 PDT"]
[Termination "Alexei_Gubajdullin won on time"]

1. h4 {[%clk 0:03:00.2]} 1... d5 {[%clk 0:02:37.8]} 2. h5 {[%clk 0:02:52.2]}
2... h6 {[%clk 0:02:37.4]} 3. e4 {[%clk 0:02:51.4]} 3... dxe4 {[%clk 0:02:37.3]}
4. Nc3 {[%clk 0:02:51.5]} 4... Nf6 {[%clk 0:02:37.5]} 5. Qe2 {[%clk 0:02:51.5]}
5... Nc6 {[%clk 0:02:34.4]} 6. Nxe4 {[%clk 0:02:51]} 6... Nd4 {[%clk 0:02:32.6]}
7. Nxf6+ {[%clk 0:02:51]} 7... gxf6 {[%clk 0:02:32.6]} 8. Qd1 {[%clk 0:02:51.6]}
8... Bf5 {[%clk 0:02:32.3]} 9. d3 {[%clk 0:02:50.9]} 9... Rg8 {[%clk 0:02:31.3]}
10. Be3 {[%clk 0:02:51.1]} 10... e5 {[%clk 0:02:30.5]} 11. c3 {[%clk 0:02:51.4]}
11... Ne6 {[%clk 0:02:28.8]} 12. Qb3 {[%clk 0:02:44]} 12... Qc8 {[%clk
0:02:21.3]} 13. O-O-O {[%clk 0:02:39.6]} 13... Bc5 {[%clk 0:02:18]} 14. Bxc5
{[%clk 0:02:27.9]} 14... Nxc5 {[%clk 0:02:17.8]} 15. Qb5+ {[%clk 0:02:28.2]}
15... Nd7 {[%clk 0:02:17.8]} 16. d4 {[%clk 0:02:25.3]} 16... c6 {[%clk
0:02:08.6]} 17. Qe2 {[%clk 0:02:24.4]} 17... Qc7 {[%clk 0:02:08]} 18. d5 {[%clk
0:02:13]} 18... cxd5 {[%clk 0:02:06.8]} 19. Rxd5 {[%clk 0:02:03.8]} 19... O-O-O
{[%clk 0:02:06.5]} 20. Rh4 {[%clk 0:02:02.5]} 20... Nb6 {[%clk 0:02:04.4]} 21.
Ra5 {[%clk 0:01:49]} 21... Bd3 {[%clk 0:01:59]} 22. Qe1 {[%clk 0:01:34.8]} 22...
Nc4 {[%clk 0:01:56.3]} 23. Rxa7 {[%clk 0:01:24.5]} 23... Qb6 {[%clk 0:01:55.8]}
24. Rxc4+ {[%clk 0:01:16]} 24... Bxc4 {[%clk 0:01:50]} 25. Ra8+ {[%clk
0:01:15.5]} 25... Kc7 {[%clk 0:01:47.4]} 26. Rxd8 {[%clk 0:01:15]} 26... Kxd8
{[%clk 0:01:47]} 27. Bxc4 {[%clk 0:01:07.7]} 27... Rxg2 {[%clk 0:01:46.6]} 28.
Ne2 {[%clk 0:00:59.4]} 28... Qxf2 {[%clk 0:01:45.5]} 29. Qd2+ {[%clk 0:00:58.2]}
29... Ke7 {[%clk 0:01:45]} 30. Qd3 {[%clk 0:00:33.3]} 30... f5 {[%clk
0:01:27.9]} 31. Kc2 {[%clk 0:00:29.8]} 31... Qc5 {[%clk 0:01:22.8]} 32. b4
{[%clk 0:00:27.1]} 32... Qc6 {[%clk 0:01:21.4]} 33. Kb3 {[%clk 0:00:24.6]} 33...
e4 {[%clk 0:01:20.2]} 34. Qd4 {[%clk 0:00:20.6]} 34... b5 {[%clk 0:01:13.5]} 35.
Qe5+ {[%clk 0:00:17]} 35... Kf8 {[%clk 0:00:50.9]} 36. Bxb5 {[%clk 0:00:17.1]}
36... Qe6+ {[%clk 0:00:50.5]} 37. Qxe6 {[%clk 0:00:17.1]} 37... fxe6 {[%clk
0:00:50.4]} 38. Nf4 {[%clk 0:00:17.7]} 38... Rf2 {[%clk 0:00:45.7]} 39. Nxe6+
{[%clk 0:00:18.1]} 39... Ke7 {[%clk 0:00:45.9]} 40. Nd4 {[%clk 0:00:18.1]} 40...
f4 {[%clk 0:00:45]} 41. a4 {[%clk 0:00:17.4]} 41... f3 {[%clk 0:00:44.4]} 42. a5
{[%clk 0:00:17.2]} 42... Rg2 {[%clk 0:00:32.7]} 43. a6 {[%clk 0:00:13.1]} 43...
Rg8 {[%clk 0:00:32]} 44. Nf5+ {[%clk 0:00:09.6]} 44... Kf6 {[%clk 0:00:31.3]}
45. Nxh6 {[%clk 0:00:10.5]} 45... Ra8 {[%clk 0:00:30.6]} 46. Ng4+ {[%clk
0:00:10.2]} 46... Kg5 {[%clk 0:00:30.6]} 47. Ne3 {[%clk 0:00:09.5]} 47... f2
{[%clk 0:00:25.7]} 48. Ka4 {[%clk 0:00:05.8]} 48... Kf4 {[%clk 0:00:25.5]} 49.
Nf1 {[%clk 0:00:05.3]} 49... e3 {[%clk 0:00:25.4]} 50. Nxe3 {[%clk 0:00:05.4]}
50... Kxe3 {[%clk 0:00:25.4]} 51. h6 {[%clk 0:00:05.7]} 51... Rb8 {[%clk
0:00:24.3]} 52. a7 {[%clk 0:00:03.5]} 52... Ra8 {[%clk 0:00:22.8]} 53. Kb3
{[%clk 0:00:01.6]} 53... Rxa7 {[%clk 0:00:22.5]} 54. Bc4 {[%clk 0:00:01.4]}
54... Rc7 {[%clk 0:00:20.8]} 55. Bb5 {[%clk 0:00:01.7]} 55... Rb7 {[%clk
0:00:19.9]} 56. Bc4 {[%clk 0:00:01.7]} 56... Rh7 {[%clk 0:00:17.7]} 57. b5
{[%clk 0:00:01.4]} 57... Rxh6 {[%clk 0:00:17.6]} 58. Bf1 {[%clk 0:00:01.6]}
58... Rd6 {[%clk 0:00:17.1]} 59. Bc4 {[%clk 0:00:01.2]} 59... Rd3 {[%clk
0:00:15.7]} 60. Kb4 {[%clk 0:00:02.1]} 60... f1=Q {[%clk 0:00:15.5]} 61. Bxd3
{[%clk 0:00:02.5]} 61... Qxd3 {[%clk 0:00:14.5]} 62. c4 {[%clk 0:00:03.4]} 62...
Qd2+ {[%clk 0:00:13.8]} 63. Kc5 {[%clk 0:00:03.1]} 63... Qd4+ {[%clk 0:00:13.6]}
64. Kc6 {[%clk 0:00:03.4]} 64... Qxc4+ {[%clk 0:00:13.4]} 65. Kb6 {[%clk
0:00:04.3]} 65... Kd4 {[%clk 0:00:13.5]} 66. Ka5 {[%clk 0:00:04.6]} 66... Kc5
{[%clk 0:00:13.6]} 0-1

[Event "Early-Titled-Tuesday-Blitz-March-19-2024"]
[Site "Chess.com"]
[Date "2024.03.19"]
[Round "7"]
[White "Witik"]
[Black "guillembaches"]
[Result "1-0"]
[WhiteElo "2755"]
[BlackElo "2565"]
[TimeControl "180+1"]
[EndTime "9:20:21 PDT"]
[Termination "Witik won on time"]

1. d4 {[%clk 0:02:59]} 1... d5 {[%clk 0:03:00.5]} 2. c4 {[%clk 0:02:57.6]} 2...
e6 {[%clk 0:03:01.1]} 3. Nf3 {[%clk 0:02:57.8]} 3... a6 {[%clk 0:03:01.3]} 4. b3
{[%clk 0:02:49.8]} 4... Nf6 {[%clk 0:03:00.4]} 5. e3 {[%clk 0:02:44.1]} 5... Be7
{[%clk 0:02:57.8]} 6. Bd3 {[%clk 0:02:42.9]} 6... dxc4 {[%clk 0:02:55.4]} 7.
bxc4 {[%clk 0:02:42.6]} 7... c5 {[%clk 0:02:55.5]} 8. O-O {[%clk 0:02:41.5]}
8... O-O {[%clk 0:02:55.4]} 9. Bb2 {[%clk 0:02:41.3]} 9... Nc6 {[%clk
0:02:49.4]} 10. Nc3 {[%clk 0:02:30.4]} 10... b6 {[%clk 0:02:44.9]} 11. Qe2
{[%clk 0:02:24]} 11... Bb7 {[%clk 0:02:43]} 12. Rad1 {[%clk 0:02:23.8]} 12...
Qc7 {[%clk 0:02:33.2]} 13. Bb1 {[%clk 0:02:07.3]} 13... Rad8 {[%clk 0:02:23.3]}
14. d5 {[%clk 0:02:05.9]} 14... exd5 {[%clk 0:02:09.1]} 15. Nxd5 {[%clk
0:02:03.3]} 15... Nxd5 {[%clk 0:02:06.1]} 16. cxd5 {[%clk 0:02:01.4]} 16... Na5
{[%clk 0:01:49.6]} 17. e4 {[%clk 0:01:47.3]} 17... c4 {[%clk 0:01:49.7]} 18. Bc3
{[%clk 0:01:40.6]} 18... b5 {[%clk 0:01:44.5]} 19. e5 {[%clk 0:01:36.5]} 19...
Bxd5 {[%clk 0:01:31.9]} 20. Rxd5 {[%clk 0:01:32.4]} 20... Rxd5 {[%clk
0:01:29.9]} 21. Qe4 {[%clk 0:01:30.1]} 21... g6 {[%clk 0:01:28.2]} 22. Qxd5
{[%clk 0:01:19.7]} 22... Rd8 {[%clk 0:01:25.5]} 23. Qe4 {[%clk 0:01:17.9]} 23...
b4 {[%clk 0:01:23.2]} 24. Bd4 {[%clk 0:01:10.6]} 24... Qc6 {[%clk 0:01:16.6]}
25. Qg4 {[%clk 0:00:53.6]} 25... Qe6 {[%clk 0:01:14.9]} 26. Qf4 {[%clk
0:00:46.9]} 26... Nc6 {[%clk 0:01:01.6]} 27. Be3 {[%clk 0:00:43.4]} 27... c3
{[%clk 0:00:55]} 28. h4 {[%clk 0:00:42.3]} 28... a5 {[%clk 0:00:47.2]} 29. Be4
{[%clk 0:00:33.9]} 29... a4 {[%clk 0:00:43]} 30. Ng5 {[%clk 0:00:25.3]} 30...
Bxg5 {[%clk 0:00:33.4]} 31. Qxg5 {[%clk 0:00:25.8]} 31... f6 {[%clk 0:00:24.5]}
32. Qxf6 {[%clk 0:00:22.3]} 32... Qxf6 {[%clk 0:00:24.5]} 33. exf6 {[%clk
0:00:23.2]} 33... Ne5 {[%clk 0:00:22.6]} 34. Rc1 {[%clk 0:00:17.4]} 34... Kf7
{[%clk 0:00:21.8]} 35. Bc5 {[%clk 0:00:17.6]} 35... b3 {[%clk 0:00:19.7]} 36.
axb3 {[%clk 0:00:17.7]} 36... axb3 {[%clk 0:00:20.1]} 37. Rxc3 {[%clk
0:00:18.4]} 37... Rd1+ {[%clk 0:00:20.3]} 38. Kh2 {[%clk 0:00:16.9]} 38... b2
{[%clk 0:00:19.8]} 39. Rb3 {[%clk 0:00:16.2]} 39... Rd2 {[%clk 0:00:18.3]} 40.
Kg3 {[%clk 0:00:09.1]} 40... Kxf6 {[%clk 0:00:17.9]} 41. Ba3 {[%clk 0:00:05.8]}
41... Nc4 {[%clk 0:00:18]} 42. Bb4 {[%clk 0:00:05.7]} 42... Rd4 {[%clk
0:00:17.6]} 43. Bb1 {[%clk 0:00:04.5]} 43... Rd1 {[%clk 0:00:17.7]} 44. Bc3+
{[%clk 0:00:03.5]} 44... Ke6 {[%clk 0:00:17.3]} 45. Ba2 {[%clk 0:00:03.7]} 45...
Rc1 {[%clk 0:00:17.7]} 46. Rb6+ {[%clk 0:00:03.1]} 46... Kf5 {[%clk 0:00:17.1]}
47. Bxc4 {[%clk 0:00:03.5]} 47... Rxc3+ {[%clk 0:00:17.5]} 48. f3 {[%clk
0:00:03.2]} 48... Rxc4 {[%clk 0:00:18]} 49. Rxb2 {[%clk 0:00:03.9]} 49... Ra4
{[%clk 0:00:18.6]} 50. Rb7 {[%clk 0:00:04.2]} 50... h6 {[%clk 0:00:18.1]} 51.
Rh7 {[%clk 0:00:04.3]} 51... g5 {[%clk 0:00:18.3]} 52. Rxh6 {[%clk 0:00:04.4]}
52... g4 {[%clk 0:00:18.7]} 53. Rh5+ {[%clk 0:00:04.4]} 53... Kg6 {[%clk
0:00:18.4]} 54. Rg5+ {[%clk 0:00:05]} 54... Kh6 {[%clk 0:00:18]} 55. Rxg4 {[%clk
0:00:05.9]} 55... Ra1 {[%clk 0:00:18.4]} 56. Re4 {[%clk 0:00:06.4]} 56... Rh1
{[%clk 0:00:19.3]} 57. Kg4 {[%clk 0:00:06.6]} 57... Rd1 {[%clk 0:00:20.2]} 58.
Re6+ {[%clk 0:00:06.5]} 58... Kg7 {[%clk 0:00:17.3]} 59. g3 {[%clk 0:00:07]}
59... Kf7 {[%clk 0:00:18.2]} 60. Re4 {[%clk 0:00:07.3]} 60... Rd5 {[%clk
0:00:18.3]} 61. f4 {[%clk 0:00:07.8]} 61... Kf6 {[%clk 0:00:18.9]} 62. h5 {[%clk
0:00:07]} 62... Ra5 {[%clk 0:00:19.5]} 63. Rb4 {[%clk 0:00:07.2]} 63... Ra1
{[%clk 0:00:20.4]} 64. Rb6+ {[%clk 0:00:07.4]} 64... Kg7 {[%clk 0:00:20.4]} 65.
Kg5 {[%clk 0:00:08]} 65... Ra5+ {[%clk 0:00:20.9]} 66. f5 {[%clk 0:00:07.7]}
66... Ra3 {[%clk 0:00:21.8]} 67. Rb7+ {[%clk 0:00:07.9]} 67... Kg8 {[%clk
0:00:21.7]} 68. g4 {[%clk 0:00:08.5]} 68... Ra6 {[%clk 0:00:20.8]} 69. f6 {[%clk
0:00:09]} 69... Rc6 {[%clk 0:00:20.5]} 70. Kg6 {[%clk 0:00:09.3]} 70... Rc8
{[%clk 0:00:17.1]} 71. Rg7+ {[%clk 0:00:09]} 71... Kh8 {[%clk 0:00:17.2]} 72.
Rh7+ {[%clk 0:00:09.7]} 1-0

[Event "Early-Titled-Tuesday-Blitz-March-19-2024"]
[Site "Chess.com"]
[Date "2024.03.19"]
[Round "7"]
[White "UNSTOPPABLE_LEGEND"]
[Black "Fh2411"]
[Result "1-0"]
[WhiteElo "2512"]
[BlackElo "2619"]
[TimeControl "180+1"]
[EndTime "9:20:23 PDT"]
[Termination "UNSTOPPABLE_LEGEND won on time"]

1. d4 {[%clk 0:03:00.9]} 1... Nf6 {[%clk 0:02:56.3]} 2. Bf4 {[%clk 0:02:59.8]}
2... d5 {[%clk 0:02:54.5]} 3. e3 {[%clk 0:02:59.2]} 3... c5 {[%clk 0:02:50.7]}
4. Nf3 {[%clk 0:02:56]} 4... Nc6 {[%clk 0:02:50.5]} 5. Nbd2 {[%clk 0:02:55.6]}
5... cxd4 {[%clk 0:02:45.9]} 6. exd4 {[%clk 0:02:55.2]} 6... Bg4 {[%clk
0:02:46.6]} 7. c3 {[%clk 0:02:52]} 7... e6 {[%clk 0:02:46.9]} 8. h3 {[%clk
0:02:49]} 8... Bf5 {[%clk 0:02:44.7]} 9. Bb5 {[%clk 0:02:48.4]} 9... Bd6 {[%clk
0:02:42]} 10. Bxd6 {[%clk 0:02:42.9]} 10... Qxd6 {[%clk 0:02:42.9]} 11. Ne5
{[%clk 0:02:39.4]} 11... O-O {[%clk 0:02:42.9]} 12. Bxc6 {[%clk 0:02:35.2]}
12... bxc6 {[%clk 0:02:43]} 13. Nb3 {[%clk 0:02:31.8]} 13... Rfb8 {[%clk
0:02:34.9]} 14. Qe2 {[%clk 0:02:28.4]} 14... Ne4 {[%clk 0:02:22]} 15. Nd3 {[%clk
0:02:18.5]} 15... a5 {[%clk 0:02:17.8]} 16. O-O {[%clk 0:02:14.1]} 16... a4
{[%clk 0:02:14.7]} 17. Nbc5 {[%clk 0:02:14.2]} 17... Nf6 {[%clk 0:02:14.8]} 18.
b4 {[%clk 0:02:00]} 18... a3 {[%clk 0:01:56]} 19. Rac1 {[%clk 0:01:46.4]} 19...
Bxd3 {[%clk 0:01:27.9]} 20. Qxd3 {[%clk 0:01:44.9]} 20... e5 {[%clk 0:01:23.8]}
21. dxe5 {[%clk 0:01:33.4]} 21... Qxe5 {[%clk 0:01:24.7]} 22. Rfe1 {[%clk
0:01:33]} 22... Qd6 {[%clk 0:01:24.5]} 23. Qd4 {[%clk 0:01:24.3]} 23... h6
{[%clk 0:01:18.8]} 24. g3 {[%clk 0:01:22.9]} 24... Re8 {[%clk 0:01:10.7]} 25.
Kg2 {[%clk 0:01:22.6]} 25... Qc7 {[%clk 0:01:05.7]} 26. Rcd1 {[%clk 0:01:01.9]}
26... Qb6 {[%clk 0:01:01.9]} 27. Qd3 {[%clk 0:00:56.5]} 27... Qa7 {[%clk
0:00:45.2]} 28. Qd2 {[%clk 0:00:50.9]} 28... Ne4 {[%clk 0:00:31]} 29. Nxe4
{[%clk 0:00:49.4]} 29... dxe4 {[%clk 0:00:31.9]} 30. Qe3 {[%clk 0:00:46.3]}
30... Qa4 {[%clk 0:00:30.8]} 31. Rd4 {[%clk 0:00:40]} 31... Qc2 {[%clk
0:00:25.4]} 32. Re2 {[%clk 0:00:39.8]} 32... Qb1 {[%clk 0:00:23.7]} 33. Rxe4
{[%clk 0:00:39]} 33... Red8 {[%clk 0:00:20.7]} 34. Rd4 {[%clk 0:00:14.1]} 34...
f5 {[%clk 0:00:16.3]} 35. Qe6+ {[%clk 0:00:12.6]} 35... Kh8 {[%clk 0:00:15.9]}
36. Qxc6 {[%clk 0:00:10.8]} 36... Rac8 {[%clk 0:00:15.6]} 37. Rxd8+ {[%clk
0:00:09.9]} 37... Rxd8 {[%clk 0:00:16.5]} 38. Re8+ {[%clk 0:00:10.3]} 38... Rxe8
{[%clk 0:00:16.5]} 39. Qxe8+ {[%clk 0:00:11.2]} 39... Kh7 {[%clk 0:00:17.4]} 40.
Qe2 {[%clk 0:00:11.3]} 40... Qc1 {[%clk 0:00:16.8]} 41. Qd3 {[%clk 0:00:09.5]}
41... Kg6 {[%clk 0:00:15]} 42. g4 {[%clk 0:00:09.3]} 42... Kh7 {[%clk
0:00:07.1]} 43. Qxf5+ {[%clk 0:00:09.5]} 43... Kh8 {[%clk 0:00:07.8]} 44. Qf8+
{[%clk 0:00:08.7]} 44... Kh7 {[%clk 0:00:07.4]} 45. Qf5+ {[%clk 0:00:09.6]}
45... Kh8 {[%clk 0:00:08]} 46. Qd3 {[%clk 0:00:10.5]} 46... Qb2 {[%clk
0:00:07.7]} 47. Qc4 {[%clk 0:00:07.9]} 47... Kh7 {[%clk 0:00:05]} 48. b5 {[%clk
0:00:07.9]} 48... Kh8 {[%clk 0:00:05.3]} 49. Qd5 {[%clk 0:00:05.1]} 49... Kh7
{[%clk 0:00:04.6]} 50. Qe4+ {[%clk 0:00:03.8]} 50... Kh8 {[%clk 0:00:04.9]} 51.
Qc6 {[%clk 0:00:04.3]} 51... Qxa2 {[%clk 0:00:04.1]} 52. b6 {[%clk 0:00:04.9]}
52... Qb2 {[%clk 0:00:02.7]} 53. b7 {[%clk 0:00:05.4]} 53... a2 {[%clk
0:00:03.2]} 54. Qc8+ {[%clk 0:00:05.3]} 54... Kh7 {[%clk 0:00:03.7]} 55. Qf5+
{[%clk 0:00:05.9]} 55... Kh8 {[%clk 0:00:04.2]} 56. Qf8+ {[%clk 0:00:05.5]}
56... Kh7 {[%clk 0:00:04.6]} 57. Qf5+ {[%clk 0:00:06.4]} 57... Kh8 {[%clk
0:00:05.2]} 58. Qc8+ {[%clk 0:00:07.1]} 58... Kh7 {[%clk 0:00:05.7]} 59. b8=Q
{[%clk 0:00:08]} 59... Qxb8 {[%clk 0:00:05.8]} 60. Qxb8 {[%clk 0:00:08.9]} 60...
a1=Q {[%clk 0:00:06.4]} 61. Qg3 {[%clk 0:00:09.6]} 61... Qa8+ {[%clk 0:00:03.8]}
62. Qf3 {[%clk 0:00:10.5]} 62... Qa3 {[%clk 0:00:02.8]} 63. Qe4+ {[%clk
0:00:10.4]} 63... Kh8 {[%clk 0:00:02.4]} 64. c4 {[%clk 0:00:11.3]} 64... Qc3
{[%clk 0:00:02.7]} 65. Qd5 {[%clk 0:00:11.5]} 65... Kh7 {[%clk 0:00:02.7]} 66.
c5 {[%clk 0:00:12.2]} 1-0

[Event "Early-Titled-Tuesday-Blitz-March-19-2024"]
[Site "Chess.com"]
[Date "2024.03.19"]
[Round "7"]
[White "superchess02"]
[Black "Ural_bogatyr"]
[Result "1/2-1/2"]
[WhiteElo "2824"]
[BlackElo "2617"]
[TimeControl "180+1"]
[EndTime "9:20:34 PDT"]
[Termination "Game drawn by repetition"]

1. d4 {[%clk 0:03:00.9]} 1... Nf6 {[%clk 0:02:55.8]} 2. c4 {[%clk 0:03:01.8]}
2... e6 {[%clk 0:02:53.5]} 3. Nc3 {[%clk 0:03:01.7]} 3... d5 {[%clk 0:02:53.4]}
4. Bg5 {[%clk 0:03:01.2]} 4... Be7 {[%clk 0:02:25.4]} 5. e3 {[%clk 0:03:01.5]}
5... O-O {[%clk 0:02:23.8]} 6. Nf3 {[%clk 0:03:01.6]} 6... c6 {[%clk 0:02:23.4]}
7. Rc1 {[%clk 0:03:01]} 7... h6 {[%clk 0:02:22.5]} 8. Bh4 {[%clk 0:03:00.9]}
8... Nbd7 {[%clk 0:02:22.8]} 9. Bd3 {[%clk 0:03:01.3]} 9... dxc4 {[%clk
0:02:22.8]} 10. Bxc4 {[%clk 0:03:02.2]} 10... b5 {[%clk 0:02:23.5]} 11. Bd3
{[%clk 0:03:02.6]} 11... Bb7 {[%clk 0:02:24]} 12. O-O {[%clk 0:03:02.4]} 12...
a6 {[%clk 0:02:23.8]} 13. a4 {[%clk 0:03:00.3]} 13... b4 {[%clk 0:02:22.6]} 14.
Bxf6 {[%clk 0:03:00.1]} 14... gxf6 {[%clk 0:02:18.8]} 15. Ne4 {[%clk 0:02:59.1]}
15... Qb6 {[%clk 0:02:14.5]} 16. Qc2 {[%clk 0:02:55.5]} 16... Rfd8 {[%clk
0:02:07.8]} 17. Rfd1 {[%clk 0:02:55.2]} 17... Qa5 {[%clk 0:01:56.1]} 18. Nfd2
{[%clk 0:02:54.9]} 18... c5 {[%clk 0:01:44.4]} 19. Nb3 {[%clk 0:02:50.1]} 19...
Qc7 {[%clk 0:01:44.4]} 20. Nbxc5 {[%clk 0:02:49]} 20... Nxc5 {[%clk 0:01:44.5]}
21. Nxc5 {[%clk 0:02:49.7]} 21... Bxc5 {[%clk 0:01:39.3]} 22. Qxc5 {[%clk
0:02:50.6]} 22... Qxc5 {[%clk 0:01:38.3]} 23. Rxc5 {[%clk 0:02:51.5]} 23... Rac8
{[%clk 0:01:38.6]} 24. Rxc8 {[%clk 0:02:32.2]} 24... Rxc8 {[%clk 0:01:38.5]} 25.
f3 {[%clk 0:02:31.2]} 25... a5 {[%clk 0:01:35.5]} 26. Kf2 {[%clk 0:02:30.9]}
26... Bd5 {[%clk 0:01:34.1]} 27. Ke2 {[%clk 0:02:23.9]} 27... Bb3 {[%clk
0:01:34]} 28. Ra1 {[%clk 0:02:23.9]} 28... Kf8 {[%clk 0:01:30.5]} 29. Kd2 {[%clk
0:02:24.2]} 29... Ke7 {[%clk 0:01:30.4]} 30. h4 {[%clk 0:02:24.6]} 30... Kd6
{[%clk 0:01:29.4]} 31. h5 {[%clk 0:02:24.5]} 31... f5 {[%clk 0:01:28.4]} 32. g4
{[%clk 0:02:23.5]} 32... fxg4 {[%clk 0:01:27.6]} 33. fxg4 {[%clk 0:02:24.4]}
33... Rg8 {[%clk 0:01:21.4]} 34. Be2 {[%clk 0:02:24.2]} 34... f5 {[%clk
0:01:19.5]} 35. gxf5 {[%clk 0:02:18.2]} 35... exf5 {[%clk 0:01:20.4]} 36. Rf1
{[%clk 0:02:17.1]} 36... Rg2 {[%clk 0:01:11.8]} 37. Ke1 {[%clk 0:02:00.4]} 37...
Be6 {[%clk 0:01:02.5]} 38. Rf2 {[%clk 0:01:41.9]} 38... Rg1+ {[%clk 0:00:59.9]}
39. Rf1 {[%clk 0:01:41.9]} 39... Rg2 {[%clk 0:00:59.9]} 40. Rf2 {[%clk 0:01:31]}
40... Rg1+ {[%clk 0:00:59.9]} 41. Kd2 {[%clk 0:01:31.7]} 41... b3 {[%clk
0:00:52.3]} 42. Bd3 {[%clk 0:01:25.9]} 42... Rg5 {[%clk 0:00:52]} 43. Rh2 {[%clk
0:01:22.7]} 43... Rg1 {[%clk 0:00:50.3]} 44. Rf2 {[%clk 0:01:04.3]} 44... Rg5
{[%clk 0:00:50.2]} 45. Kc3 {[%clk 0:01:05]} 45... Rxh5 {[%clk 0:00:42.8]} 46.
Bc4 {[%clk 0:01:05.5]} 46... Rh3 {[%clk 0:00:41]} 47. Bxe6 {[%clk 0:01:05.5]}
47... Rxe3+ {[%clk 0:00:36.5]} 48. Kd2 {[%clk 0:01:05.7]} 48... Rxe6 {[%clk
0:00:36.4]} 49. Rxf5 {[%clk 0:01:06.4]} 49... Re8 {[%clk 0:00:20.5]} 50. Rxa5
{[%clk 0:01:05.7]} 50... Rc8 {[%clk 0:00:21]} 51. Rh5 {[%clk 0:00:52.1]} 51...
Rc2+ {[%clk 0:00:18.3]} 52. Kd3 {[%clk 0:00:52.6]} 52... Rxb2 {[%clk 0:00:18.6]}
53. Rxh6+ {[%clk 0:00:53.3]} 53... Kd5 {[%clk 0:00:18.8]} 54. Rh5+ {[%clk
0:00:53.5]} 54... Kd6 {[%clk 0:00:19]} 55. Kc3 {[%clk 0:00:52.5]} 55... Rb1
{[%clk 0:00:18.9]} 56. Rb5 {[%clk 0:00:52]} 56... Ra1 {[%clk 0:00:11.7]} 57.
Kxb3 {[%clk 0:00:52.2]} 57... Rd1 {[%clk 0:00:11.9]} 58. Kc4 {[%clk 0:00:50.6]}
58... Rc1+ {[%clk 0:00:11.3]} 59. Kb4 {[%clk 0:00:51.1]} 59... Rd1 {[%clk
0:00:11.5]} 60. d5 {[%clk 0:00:51.5]} 60... Kc7 {[%clk 0:00:03.1]} 61. a5 {[%clk
0:00:41.9]} 61... Ra1 {[%clk 0:00:02.9]} 62. Rc5+ {[%clk 0:00:39.2]} 62... Kd6
{[%clk 0:00:02.7]} 63. Rb5 {[%clk 0:00:38.4]} 63... Rb1+ {[%clk 0:00:02.8]} 64.
Kc4 {[%clk 0:00:38.5]} 64... Rc1+ {[%clk 0:00:03.1]} 65. Kd4 {[%clk 0:00:38]}
65... Rd1+ {[%clk 0:00:03.3]} 66. Ke4 {[%clk 0:00:35.8]} 66... Re1+ {[%clk
0:00:03.6]} 67. Kf3 {[%clk 0:00:29.9]} 67... Rd1 {[%clk 0:00:02.7]} 68. Ke4
{[%clk 0:00:14.5]} 68... Re1+ {[%clk 0:00:03]} 69. Kd3 {[%clk 0:00:14.6]} 69...
Rd1+ {[%clk 0:00:03.6]} 70. Kc4 {[%clk 0:00:15.3]} 70... Rc1+ {[%clk 0:00:04.1]}
71. Kd4 {[%clk 0:00:10.7]} 71... Rd1+ {[%clk 0:00:04.1]} 72. Ke4 {[%clk
0:00:11.4]} 1/2-1/2